[Event "Kragero Resort A 2020"]
[Site "Kragero"]
[Date "2020.02.20"]
[Round "4.14"]
[White "Ranaldi, Lucas"]
[Black "Castellanos Rodriguez, Renier"]
[Result "1/2-1/2"]
[ECO "D45"]
[WhiteElo "2302"]
[BlackElo "2481"]
[Annotator "ChessBase"]
[PlyCount "43"]
[EventDate "2020.02.19"]
[EventType "swiss"]
[EventCountry "NOR"]
[SourceTitle "playchess.com"]
[Source "ChessBase"]
[SourceQuality "1"]
[TimeControl "5400+30"]

1. Nf3 {[%emt 0:00:00]} d5 {[%emt 0:00:18]} 2. e3 {[%emt 0:00:03]} Nf6 {[%emt 0:03:47]} 3. c4 {[%emt 0:00:07]} c6 {[%emt 0:00:44]} 4. Nc3 {[%emt 0:00:08]} e6 {[%emt 0:00:52]} 5. b3 {[%emt 0:00:10]} Bd6 {[%emt 0:00:23]} 6. Bb2 {[%emt 0:00:11]} O-O {[%emt 0:00:35]} 7. Be2 {[%emt 0:00:24]} Re8 {[%emt 0:01:37]} 8. d4 {[%emt 0:00:38]} Nbd7 {[%emt 0:00:44]} 9. O-O {[%emt 0:02:46]} b6 {[%emt 0:01:33]} 10. Qc2 {[%emt 0:01:06]} Bb7 {[%emt 0:00:22]} 11. Rad1 {[%emt 0:01:03]} Qe7 {[%emt 0:00:45]} 12. Rfe1 {[%emt 0:01:15]} Bb4 {[%emt 0:02:18]} 13. Bd3 {[%emt 0:16:57]} h6 {[%emt 0:05:26]} 14. Re2 {[%emt 0:03:22]} Bxc3 {[%emt 0:10:40]} 15. Qxc3 {[%emt 0:06:30]} c5 {[%emt 0:00:33]} 16. cxd5 {[%emt 0:03:36]} Nxd5 {[%emt 0:00:49]} 17. Qe1 {[%emt 0:01:20]} Rac8 {[%emt 0:03:11]} 18. Red2 {[%emt 0:04:59]} Red8 {[%emt 0:01:18]} 19. Bb1 {[%emt 0:03:23]} c4 {[%emt 0:05:04]} 20. bxc4 {[%emt 0:02:51]} Rxc4 {[%emt 0:00:09]} 21. e4 {[%emt 0:02:08]} Nc3 {[%emt 0:02:08]} 22. Rc1 {[%emt 0:04:47]} 1/2-1/2

[Event "Kragero Resort A 2020"]
[Site "Kragero"]
[Date "2020.02.20"]
[Round "4.16"]
[White "Thorgeirsson, Jon Kristinn"]
[Black "Holm, Kristian Stuvik"]
[Result "0-1"]
[ECO "D90"]
[WhiteElo "2269"]
[BlackElo "2467"]
[Annotator "ChessBase"]
[PlyCount "52"]
[EventDate "2020.02.19"]
[EventType "swiss"]
[EventCountry "NOR"]
[SourceTitle "playchess.com"]
[Source "ChessBase"]
[SourceQuality "1"]
[TimeControl "5400+30"]

1. d4 {[%emt 0:00:00]} Nf6 {[%emt 0:00:00]} 2. c4 {[%emt 0:00:21]} g6 {[%emt 0:00:00]} 3. Nc3 {[%emt 0:00:06]} d5 {[%emt 0:00:00]} 4. Nf3 {[%emt 0:01:14]} Bg7 {[%emt 0:00:00]} 5. cxd5 {[%emt 0:01:54]} Nxd5 {[%emt 0:00:11]} 6. Qb3 {[%emt 0:00:06]} Nxc3 {[%emt 0:02:14]} 7. bxc3 {[%emt 0:00:07]} c5 {[%emt 0:03:33]} 8. e3 {[%emt 0:02:10]} O-O {[%emt 0:00:56]} 9. Ba3 {[%emt 0:03:50]} cxd4 {[%emt 0:02:14]} 10. cxd4 {[%emt 0:00:11]} Nc6 {[%emt 0:00:58]} 11. Nd2 {[%emt 0:13:57]} Be6 {[%emt 0:09:52]} 12. Bc4 {[%emt 0:01:36]} Na5 {[%emt 0:01:33]} 13. Qb5 {[%emt 0:11:49]} a6 {[%emt 0:06:10]} 14. Qb4 {[%emt 0:00:13]} Nxc4 {[%emt 0:00:18]} 15. Nxc4 {[%emt 0:00:05]} Qd5 {[%emt 0:00:10]} 16. Nb6 {[%emt 0:00:24]} Qxg2 {[%emt 0:00:28]} 17. O-O-O {[%emt 0:00:18]} Rad8 {[%emt 0:04:45]} 18. Qb2 {[%emt 0:15:17]} Bf5 {[%emt 0:04:04]} 19. Bc5 {[%emt 0:12:09]} Rfe8 {[%emt 0:02:21]} 20. Rhg1 {[%emt 0:05:07]} Qxh2 {[%emt 0:05:02]} 21. f3 {[%emt 0:00:58]} Qc7 {[%emt 0:03:57]} 22. Qa3 {[%emt 0:01:48]} e5 {[%emt 0:04:08]} 23. e4 {[%emt 0:07:10]} exd4 {[%emt 0:00:20]} 24. Rg2 {[%emt 0:04:51]} Be6 {[%emt 0:01:15]} 25. Rc2 {[%emt 0:00:41]} Qf4+ {[%emt 0:03:47]} 26. Kb1 {[%emt 0:00:10]} Qg5 {[%emt 0:05:32]} 0-1

[Event "Kragero Resort A 2020"]
[Site "Kragero"]
[Date "2020.02.20"]
[Round "4.21"]
[White "Tryggestad, Andreas Garberg"]
[Black "Unneland, Mathias"]
[Result "1-0"]
[ECO "B22"]
[WhiteElo "2380"]
[BlackElo "2175"]
[Annotator "NA"]
[PlyCount "65"]
[EventDate "2020.02.19"]
[EventType "swiss"]
[EventCountry "NOR"]
[SourceTitle "playchess.com"]
[Source "ChessBase"]
[SourceQuality "1"]
[TimeControl "5400+30"]

1. e4 {[%emt 0:00:00]} c5 {[%emt 0:00:00]} 2. Nf3 {[%emt 0:00:00]} Nc6 {[%emt 0:00:00]} 3. c3 {[%emt 0:00:00]} Nf6 {[%emt 0:00:10]} 4. e5 {[%emt 0:00:00]} Nd5 {[%emt 0:00:14]} 5. Bc4 {[%emt 0:00:00]} Nb6 {[%emt 0:00:25]} 6. Bb3 {[%emt 0:00:00]} d5 {[%emt 0:00:27]} 7. exd6 {[%emt 0:00:08]} c4 {[%emt 0:00:07]} 8. Bc2 {[%emt 0:00:19]} Qxd6 {[%emt 0:00:07]} 9. O-O {[%emt 0:00:24]} Bg4 {[%emt 0:00:07]} 10. Qe2 {[%emt 0:01:16]} O-O-O {[%emt 0:05:43]} 11. b3 {[%emt 0:00:58]} Qf6 {[%emt 0:03:12]} 12. Be4 {[%emt 0:08:37]} Ne5 {[%emt 0:01:37]} 13. Bxb7+ {[%emt 0:00:18]} Kxb7 {[%emt 0:00:07]} 14. Qxe5 {[%emt 0:00:57]} Bxf3 {[%emt 0:00:07]} 15. Qxf6 {[%emt 0:00:02]} gxf6 {[%emt 0:00:11]} 16. gxf3 {[%emt 0:00:06]} Rd3 {[%emt 0:03:23]} 17. Re1 {[%emt 0:00:45]} Rg8+ {[%emt 0:02:30]} 18. Kf1 {[%emt 0:00:06]} Rxf3 {[%emt 0:00:38]} 19. Na3 {[%emt 0:00:27]} cxb3 {[%emt 0:00:45]} 20. axb3 {[%emt 0:00:05]} Rh3 {[%emt 0:03:54]} 21. Nc4 {[%emt 0:34:57]} Nxc4 {[%emt 0:04:33]} 22. bxc4 {[%emt 0:00:02]} Rxh2 {[%emt 0:00:30]} 23. Ke2 {[%emt 0:01:47]} e6 {[%emt 0:01:31]} 24. d3 {[%emt 0:00:09]} Bh6 {[%emt 0:11:33]} 25. Ba3 {[%emt 0:08:32]} Rh5 {[%emt 0:08:40]} 26. Reb1+ {[%emt 0:01:38]} Ka8 {[%emt 0:02:12]} 27. Bd6 {[%emt 0:00:13]} Rf5 {[%emt 0:00:26]} 28. Ra2 {[%emt 0:05:27]} Bf4 {[%emt 0:03:21]} 29. Rba1 {[%emt 0:00:21]} Bxd6 {[%emt 0:01:12]} 30. Rxa7+ {[%emt 0:00:03]} Kb8 {[%emt 0:00:10]} 31. Ra8+ {[%emt 0:00:02]} Kb7 {[%emt 0:00:24]} 32. Rxg8 {[%emt 0:00:05]} h5 {[%emt 0:00:21]} 33. Rg7 {[%emt 0:00:27]} 1-0

[Event "Kragero Resort A 2020"]
[Site "Kragero"]
[Date "2020.02.20"]
[Round "4.22"]
[White "Kvaloy, Aksel Bu"]
[Black "Mikalsen, Erlend"]
[Result "0-1"]
[ECO "B51"]
[WhiteElo "2174"]
[BlackElo "2364"]
[Annotator "NA"]
[PlyCount "46"]
[EventDate "2020.02.19"]
[EventType "swiss"]
[EventCountry "NOR"]
[SourceTitle "playchess.com"]
[Source "ChessBase"]
[SourceQuality "1"]
[TimeControl "5400+30"]

1. e4 {[%emt 0:00:00]} c5 {[%emt 0:00:04]} 2. Nf3 {[%emt 0:00:00]} d6 {[%emt 0:00:02]} 3. Bb5+ {[%emt 0:00:00]} Nd7 {[%emt 0:00:04]} 4. Ba4 {[%emt 0:00:08]} Ngf6 {[%emt 0:00:05]} 5. O-O {[%emt 0:00:26]} e6 {[%emt 0:00:02]} 6. d4 {[%emt 0:03:14]} Nxe4 {[%emt 0:04:58]} 7. Qe2 {[%emt 0:02:04]} Nef6 {[%emt 0:03:04]} 8. dxc5 {[%emt 0:02:35]} dxc5 {[%emt 0:04:23]} 9. Ne5 {[%emt 0:01:08]} Bd6 {[%emt 0:01:26]} 10. Bf4 {[%emt 0:02:31]} Bxe5 {[%emt 0:02:00]} 11. Bxe5 {[%emt 0:00:25]} Qa5 {[%emt 0:00:38]} 12. Nc3 {[%emt 0:03:02]} a6 {[%emt 0:00:07]} 13. Qf3 {[%emt 0:05:32]} O-O {[%emt 0:03:57]} 14. Bd6 {[%emt 0:02:27]} Re8 {[%emt 0:00:08]} 15. Rfe1 {[%emt 0:16:17]} b5 {[%emt 0:06:49]} 16. b4 {[%emt 0:27:14]} cxb4 {[%emt 0:00:34]} 17. Ne4 {[%emt 0:00:40]} Bb7 {[%emt 0:02:09]} 18. Nxf6+ {[%emt 0:01:30]} Nxf6 {[%emt 0:00:06]} 19. Qxb7 {[%emt 0:00:33]} Qxa4 {[%emt 0:00:31]} 20. Re3 {[%emt 0:04:40]} Qxc2 {[%emt 0:01:10]} 21. Rf1 {[%emt 0:01:03]} Qxa2 {[%emt 0:01:11]} 22. Rg3 {[%emt 0:00:39]} Qd5 {[%emt 0:00:19]} 23. Qb6 {[%emt 0:00:56]} Ne4 {[%emt 0:00:21]} 0-1

[Event "Kragero Resort A 2020"]
[Site "Kragero"]
[Date "2020.02.20"]
[Round "4.23"]
[White "Stanford, Maxim Barth"]
[Black "Krivenko, Dion"]
[Result "1-0"]
[ECO "A45"]
[WhiteElo "2339"]
[BlackElo "1935"]
[Annotator "RC"]
[PlyCount "107"]
[EventDate "2020.02.19"]
[EventType "swiss"]
[EventCountry "NOR"]
[SourceTitle "playchess.com"]
[Source "ChessBase"]
[SourceQuality "1"]
[TimeControl "5400+30"]

1. d4 {[%emt 0:00:44]} Nf6 {[%emt 0:00:00]} 2. Bg5 {[%emt 0:00:16]} Ne4 {[%emt 0:00:00]} 3. Bf4 {[%emt 0:00:08]} d5 {[%emt 0:00:28]} 4. f3 {[%emt 0:00:42]} Nf6 {[%emt 0:01:02]} 5. e3 {[%emt 0:02:07]} e6 {[%emt 0:01:10]} 6. Bd3 {[%emt 0:01:19]} c5 {[%emt 0:00:25]} 7. c3 {[%emt 0:00:40]} Nc6 {[%emt 0:02:28]} 8. Ne2 {[%emt 0:01:18]} Be7 {[%emt 0:02:44]} 9. Nd2 {[%emt 0:01:15]} Nh5 {[%emt 0:02:01]} 10. Bg3 {[%emt 0:03:39]} Nxg3 {[%emt 0:02:07]} 11. hxg3 {[%emt 0:00:40]} h6 {[%emt 0:00:39]} 12. f4 {[%emt 0:00:32]} cxd4 {[%emt 0:03:13]} 13. exd4 {[%emt 0:00:33]} Qb6 {[%emt 0:03:40]} 14. Rb1 {[%emt 0:05:02]} Bd7 {[%emt 0:01:46]} 15. b4 {[%emt 0:02:01]} Bd6 {[%emt 0:08:34]} 16. Nf3 {[%emt 0:03:23]} Ne7 {[%emt 0:03:24]} 17. Ne5 {[%emt 0:06:00]} Bb5 {[%emt 0:06:25]} 18. a4 {[%emt 0:01:01]} Bxd3 {[%emt 0:00:05]} 19. Qxd3 {[%emt 0:00:05]} Qc7 {[%emt 0:05:02]} 20. Qb5+ {[%emt 0:10:16]} Nc6 {[%emt 0:01:54]} 21. a5 {[%emt 0:02:00]} a6 {[%emt 0:02:35]} 22. Qd3 {[%emt 0:00:39]} Bxe5 {[%emt 0:01:29]} 23. fxe5 {[%emt 0:00:22]} Ne7 {[%emt 0:01:33]} 24. O-O {[%emt 0:01:27]} h5 {[%emt 0:04:51]} 25. Rf3 {[%emt 0:02:34]} Nf5 {[%emt 0:05:36]} 26. Nc1 {[%emt 0:02:23]} g5 {[%emt 0:07:58]} 27. Nb3 {[%emt 0:01:51]} g4 {[%emt 0:01:34]} 28. Rxf5 {[%emt 0:08:12]} exf5 {[%emt 0:00:19]} 29. Rf1 {[%emt 0:01:10]} Rf8 {[%emt 0:16:26]} 30. Nc5 {[%emt 0:05:57]} O-O-O {[%emt 0:02:08]} 31. Qxf5+ {[%emt 0:00:38]} Kb8 {[%emt 0:00:01]} 32. Qxh5 {[%emt 0:01:01]} Qe7 {[%emt 0:04:09]} 33. Rf6 {[%emt 0:03:07]} Ka8 {[%emt 0:01:34]} 34. Qxg4 {[%emt 0:04:31]} Rg8 {[%emt 0:00:23]} 35. Qf3 {[%emt 0:00:22]} Rg6 {[%emt 0:03:30]} 36. Rxf7 {[%emt 0:08:14]} Qg5 {[%emt 0:00:18]} 37. Rf4 {[%emt 0:00:05]} Qxg3 {[%emt 0:01:59]} 38. Qxg3 {[%emt 0:00:27]} Rxg3 {[%emt 0:00:01]} 39. Rf3 {[%emt 0:00:32]} Rg6 {[%emt 0:01:37]} 40. Kf2 {[%emt 0:01:05]} Rdg8 {[%emt 0:01:07]} 41. g3 {[%emt 0:00:14]} Rh8 {[%emt 0:00:01]} 42. e6 {[%emt 0:01:46]} Rg7 {[%emt 0:02:36]} 43. Kg2 {[%emt 0:02:12]} Rhg8 {[%emt 0:00:50]} 44. Nd3 {[%emt 0:00:49]} Re7 {[%emt 0:01:13]} 45. Nf4 {[%emt 0:00:07]} Kb8 {[%emt 0:00:28]} 46. Re3 {[%emt 0:00:13]} Rd8 {[%emt 0:00:50]} 47. Re5 {[%emt 0:00:22]} Rd6 {[%emt 0:00:13]} 48. g4 {[%emt 0:00:50]} Rc6 {[%emt 0:00:56]} 49. g5 {[%emt 0:01:12]} Rxc3 {[%emt 0:00:28]} 50. Nxd5 {[%emt 0:00:29]} Rc2+ {[%emt 0:00:01]} 51. Kg3 {[%emt 0:00:11]} Re8 {[%emt 0:00:16]} 52. e7 {[%emt 0:00:13]} Rc1 {[%emt 0:00:31]} 53. Nf6 {[%emt 0:00:36]} Rg1+ {[%emt 0:00:04]} 54. Kf2 {[%emt 0:00:12]} 1-0

[Event "Kragero Resort A 2020"]
[Site "Kragero"]
[Date "2020.02.20"]
[Round "4.28"]
[White "Aarnes, Eirik"]
[Black "Birkisson, Bardur Orn"]
[Result "1-0"]
[ECO "C68"]
[WhiteElo "1884"]
[BlackElo "2186"]
[Annotator "NA"]
[PlyCount "33"]
[EventDate "2020.02.19"]
[EventType "swiss"]
[EventCountry "NOR"]
[SourceTitle "playchess.com"]
[Source "ChessBase"]
[SourceQuality "1"]
[TimeControl "5400+30"]

1. e4 {[%emt 0:00:00]} e5 {[%emt 0:00:10]} 2. Nf3 {[%emt 0:00:00]} Nc6 {[%emt 0:00:10]} 3. Bb5 {[%emt 0:00:00]} a6 {[%emt 0:00:17]} 4. Bxc6 {[%emt 0:00:00]} dxc6 {[%emt 0:00:07]} 5. O-O {[%emt 0:00:00]} Bg4 {[%emt 0:00:29]} 6. h3 {[%emt 0:00:00]} h5 {[%emt 0:00:12]} 7. d3 {[%emt 0:00:02]} Qf6 {[%emt 0:00:11]} 8. Nbd2 {[%emt 0:00:22]} O-O-O {[%emt 0:03:15]} 9. hxg4 {[%emt 0:09:02]} hxg4 {[%emt 0:01:18]} 10. Nh2 {[%emt 0:00:05]} Nh6 {[%emt 0:05:54]} 11. g3 {[%emt 0:05:51]} Qg6 {[%emt 0:10:52]} 12. Kg2 {[%emt 0:02:54]} Qh5 {[%emt 0:12:30]} 13. Rh1 {[%emt 0:00:47]} Qh3+ {[%emt 0:00:23]} 14. Kg1 {[%emt 0:00:05]} Bc5 {[%emt 0:00:08]} 15. Ndf1 {[%emt 0:11:07]} f5 {[%emt 0:01:03]} 16. Be3 {[%emt 0:16:22]} Bxe3 {[%emt 0:06:36]} 17. Nxe3 {[%emt 0:00:20]} 1-0

[Event "Kragero Resort A 2020"]
[Site "Kragero"]
[Date "2020.02.21"]
[Round "5.1"]
[White "Miedema, David"]
[Black "Gharibyan, Mamikon"]
[Result "0-1"]
[ECO "A47"]
[WhiteElo "2368"]
[BlackElo "2405"]
[Annotator "ChessBase"]
[PlyCount "78"]
[EventDate "2020.02.19"]
[EventType "swiss"]
[EventCountry "NOR"]
[SourceTitle "playchess.com"]
[Source "ChessBase"]
[SourceQuality "1"]
[TimeControl "5400+30"]

1. d4 {[%emt 0:04:48]} Nf6 {[%emt 0:00:00]} 2. Nf3 {[%emt 0:00:06]} e6 {[%emt 0:01:55]} 3. Bf4 {[%emt 0:00:34]} b6 {[%emt 0:01:34]} 4. h3 {[%emt 0:00:38]} Bb7 {[%emt 0:00:51]} 5. e3 {[%emt 0:01:13]} d5 {[%emt 0:26:09]} 6. Nbd2 {[%emt 0:00:23]} Bd6 {[%emt 0:01:59]} 7. Ne5 {[%emt 0:02:02]} O-O {[%emt 0:03:10]} 8. Bd3 {[%emt 0:00:44]} Ne4 {[%emt 0:01:50]} 9. Bxe4 {[%emt 0:02:23]} dxe4 {[%emt 0:00:16]} 10. Qg4 {[%emt 0:01:01]} Qe7 {[%emt 0:03:32]} 11. Bg3 {[%emt 0:06:12]} Nd7 {[%emt 0:03:18]} 12. Bh4 {[%emt 0:00:40]} f6 {[%emt 0:03:22]} 13. Nec4 {[%emt 0:01:56]} Qf7 {[%emt 0:02:03]} 14. Nxe4 {[%emt 0:04:45]} Be7 {[%emt 0:06:16]} 15. Nc3 {[%emt 0:01:57]} h5 {[%emt 0:07:16]} 16. Qg3 {[%emt 0:03:53]} e5 {[%emt 0:02:02]} 17. Nd2 {[%emt 0:01:36]} exd4 {[%emt 0:04:51]} 18. Nb5 {[%emt 0:03:15]} dxe3 {[%emt 0:01:13]} 19. fxe3 {[%emt 0:00:02]} Ne5 {[%emt 0:07:35]} 20. O-O {[%emt 0:00:53]} Ba6 {[%emt 0:06:57]} 21. Nxc7 {[%emt 0:04:44]} Bxf1 {[%emt 0:00:57]} 22. Nxa8 {[%emt 0:00:04]} Bb5 {[%emt 0:02:35]} 23. Nc7 {[%emt 0:00:52]} Bc6 {[%emt 0:00:04]} 24. a4 {[%emt 0:01:27]} Bd6 {[%emt 0:05:34]} 25. Nb5 {[%emt 0:00:41]} Nf3+ {[%emt 0:00:11]} 26. Qxf3 {[%emt 0:01:03]} Bxf3 {[%emt 0:00:04]} 27. Nxd6 {[%emt 0:00:04]} Qd5 {[%emt 0:00:13]} 28. Nxf3 {[%emt 0:02:21]} Qxd6 {[%emt 0:00:04]} 29. Nd4 {[%emt 0:00:07]} Qd5 {[%emt 0:00:38]} 30. Rf1 {[%emt 0:00:24]} Re8 {[%emt 0:00:27]} 31. Bf2 {[%emt 0:00:51]} Qe4 {[%emt 0:00:24]} 32. Rd1 {[%emt 0:00:36]} Re5 {[%emt 0:00:20]} 33. Kh2 {[%emt 0:01:23]} Rg5 {[%emt 0:01:24]} 34. Nf3 {[%emt 0:02:06]} Ra5 {[%emt 0:00:22]} 35. Rd8+ {[%emt 0:00:20]} Kh7 {[%emt 0:00:22]} 36. Rd4 {[%emt 0:00:57]} Qxc2 {[%emt 0:00:12]} 37. Be1 {[%emt 0:00:03]} Rxa4 {[%emt 0:00:19]} 38. b4 {[%emt 0:00:44]} Qe2 {[%emt 0:01:07]} 39. Re4 {[%emt 0:00:48]} Ra2 {[%emt 0:00:15]} 0-1

[Event "Kragero Resort A 2020"]
[Site "Kragero"]
[Date "2020.02.21"]
[Round "5.8"]
[White "Mirzoev, Emil"]
[Black "Shehzad, Shazil"]
[Result "1-0"]
[ECO "A28"]
[WhiteElo "2452"]
[BlackElo "2144"]
[Annotator "ChessBase"]
[PlyCount "51"]
[EventDate "2020.02.19"]
[EventType "swiss"]
[EventCountry "NOR"]
[SourceTitle "playchess.com"]
[Source "ChessBase"]
[SourceQuality "1"]
[TimeControl "5400+30"]

1. c4 {[%emt 0:00:42]} e5 {[%emt 0:00:00]} 2. Nc3 {[%emt 0:00:30]} Nf6 {[%emt 0:00:00]} 3. Nf3 {[%emt 0:00:04]} Nc6 {[%emt 0:00:05]} 4. e4 {[%emt 0:00:05]} Bb4 {[%emt 0:03:33]} 5. d3 {[%emt 0:00:08]} d6 {[%emt 0:01:21]} 6. a3 {[%emt 0:00:07]} Bxc3+ {[%emt 0:00:21]} 7. bxc3 {[%emt 0:00:12]} h6 {[%emt 0:01:32]} 8. g3 {[%emt 0:00:10]} a6 {[%emt 0:01:29]} 9. a4 {[%emt 0:00:14]} b6 {[%emt 0:01:40]} 10. Bg2 {[%emt 0:00:46]} Be6 {[%emt 0:01:14]} 11. O-O {[%emt 0:03:14]} Qc8 {[%emt 0:03:21]} 12. Nh4 {[%emt 0:00:24]} Bh3 {[%emt 0:03:32]} 13. Nf5 {[%emt 0:02:44]} Bxg2 {[%emt 0:00:47]} 14. Kxg2 {[%emt 0:00:02]} Ne7 {[%emt 0:05:07]} 15. Nxg7+ {[%emt 0:01:13]} Kf8 {[%emt 0:00:15]} 16. Nh5 {[%emt 0:00:12]} Nxh5 {[%emt 0:06:06]} 17. Qxh5 {[%emt 0:00:25]} Qe6 {[%emt 0:00:22]} 18. f4 {[%emt 0:00:05]} Qg6 {[%emt 0:02:20]} 19. Qh4 {[%emt 0:01:14]} h5 {[%emt 0:02:14]} 20. fxe5 {[%emt 0:00:44]} dxe5 {[%emt 0:00:47]} 21. Ba3 {[%emt 0:00:10]} Re8 {[%emt 0:00:53]} 22. Rf6 {[%emt 0:00:56]} Qg4 {[%emt 0:00:36]} 23. Qxg4 {[%emt 0:00:17]} hxg4 {[%emt 0:00:05]} 24. Raf1 {[%emt 0:00:04]} Rh7 {[%emt 0:00:08]} 25. a5 {[%emt 0:01:12]} bxa5 {[%emt 0:00:18]} 26. R1f5 {[%emt 0:01:56]} 1-0

[Event "Kragero Resort A 2020"]
[Site "Kragero"]
[Date "2020.02.21"]
[Round "5.9"]
[White "Alinasab, Mobina"]
[Black "Haug, Johannes"]
[Result "1/2-1/2"]
[ECO "C76"]
[WhiteElo "2333"]
[BlackElo "2426"]
[Annotator "ChessBase"]
[PlyCount "74"]
[EventDate "2020.02.19"]
[EventType "swiss"]
[EventCountry "NOR"]
[SourceTitle "playchess.com"]
[Source "ChessBase"]
[SourceQuality "1"]
[TimeControl "5400+30"]

1. e4 {[%emt 0:00:00]} e5 {[%emt 0:00:00]} 2. Nf3 {[%emt 0:00:00]} Nc6 {[%emt 0:00:00]} 3. Bb5 {[%emt 0:00:00]} a6 {[%emt 0:00:00]} 4. Ba4 {[%emt 0:00:00]} d6 {[%emt 0:00:30]} 5. O-O {[%emt 0:00:33]} Bd7 {[%emt 0:00:14]} 6. c3 {[%emt 0:01:33]} g6 {[%emt 0:00:13]} 7. d4 {[%emt 0:00:06]} Bg7 {[%emt 0:00:39]} 8. dxe5 {[%emt 0:05:13]} Nxe5 {[%emt 0:00:55]} 9. Nxe5 {[%emt 0:00:59]} dxe5 {[%emt 0:00:24]} 10. Bxd7+ {[%emt 0:09:02]} Qxd7 {[%emt 0:00:36]} 11. Qxd7+ {[%emt 0:00:19]} Kxd7 {[%emt 0:00:04]} 12. Be3 {[%emt 0:00:27]} Bh6 {[%emt 0:08:42]} 13. Rd1+ {[%emt 0:04:53]} Ke6 {[%emt 0:00:42]} 14. Bxh6 {[%emt 0:10:04]} Nxh6 {[%emt 0:00:12]} 15. Nd2 {[%emt 0:00:12]} f5 {[%emt 0:10:34]} 16. Re1 {[%emt 0:09:06]} f4 {[%emt 0:09:30]} 17. Rad1 {[%emt 0:06:48]} Rhd8 {[%emt 0:03:53]} 18. f3 {[%emt 0:00:45]} Nf7 {[%emt 0:01:50]} 19. Nc4 {[%emt 0:04:59]} b6 {[%emt 0:01:45]} 20. Kf2 {[%emt 0:01:17]} g5 {[%emt 0:00:25]} 21. h3 {[%emt 0:02:37]} h5 {[%emt 0:00:59]} 22. Ke2 {[%emt 0:00:52]} Rg8 {[%emt 0:08:34]} 23. Rh1 {[%emt 0:02:18]} Rg6 {[%emt 0:04:47]} 24. Kf2 {[%emt 0:03:46]} Rag8 {[%emt 0:01:40]} 25. g4 {[%emt 0:10:53]} Rh6 {[%emt 0:07:07]} 26. gxh5 {[%emt 0:06:08]} Rxh5 {[%emt 0:00:34]} 27. Kg2 {[%emt 0:00:13]} Nd6 {[%emt 0:11:52]} 28. Nxd6 {[%emt 0:00:54]} cxd6 {[%emt 0:00:01]} 29. Rd5 {[%emt 0:00:44]} Ke7 {[%emt 0:00:22]} 30. a4 {[%emt 0:03:50]} Rc8 {[%emt 0:01:10]} 31. Rhd1 {[%emt 0:01:41]} Rh6 {[%emt 0:00:17]} 32. R5d3 {[%emt 0:00:29]} Rch8 {[%emt 0:06:38]} 33. Rh1 {[%emt 0:00:06]} Rc8 {[%emt 0:01:16]} 34. Rhd1 {[%emt 0:00:05]} Rc6 {[%emt 0:02:15]} 35. b3 {[%emt 0:00:29]} Rh8 {[%emt 0:07:14]} 36. c4 {[%emt 0:00:18]} Rb8 {[%emt 0:00:04]} 37. Rd5 {[%emt 0:01:11]} Rh8 {[%emt 0:01:22]} 1/2-1/2

[Event "Kragero Resort A 2020"]
[Site "Kragero"]
[Date "2020.02.21"]
[Round "5.10"]
[White "Seo, Jung Min"]
[Black "Altarbosh, Ward"]
[Result "1-0"]
[ECO "A29"]
[WhiteElo "2424"]
[BlackElo "2149"]
[Annotator "NA"]
[PlyCount "85"]
[EventDate "2020.02.19"]
[EventType "swiss"]
[EventCountry "NOR"]
[SourceTitle "playchess.com"]
[Source "ChessBase"]
[SourceQuality "1"]
[TimeControl "5400+30"]

1. c4 {[%emt 0:00:00]} Nf6 {[%emt 0:00:00]} 2. Nc3 {[%emt 0:00:00]} e5 {[%emt 0:00:26]} 3. Nf3 {[%emt 0:00:19]} Nc6 {[%emt 0:00:05]} 4. g3 {[%emt 0:01:15]} Bc5 {[%emt 0:00:41]} 5. Bg2 {[%emt 0:01:29]} d6 {[%emt 0:00:32]} 6. O-O {[%emt 0:01:21]} Bf5 {[%emt 0:00:59]} 7. d3 {[%emt 0:02:10]} O-O {[%emt 0:02:00]} 8. Na4 {[%emt 0:13:51]} Bb6 {[%emt 0:01:35]} 9. Nxb6 {[%emt 0:03:25]} axb6 {[%emt 0:00:01]} 10. h3 {[%emt 0:01:50] [#] A29: English Opening: Four Knights Variation with 4 g3.} Qe7 $146 {[%emt 0:00:11]} ({Predecessor:} 10... Qd7 11. Kh2 h6 {½-½ (11) Hunacek,J (1785)-Nespurek,P (1389) Czechia 2009}) 11. e4 {[%emt 0:02:10]} Bd7 {[%emt 0:00:14]} 12. Be3 {[%emt 0:05:40]} Nd8 {[%emt 0:01:29]} 13. Nh4 {[%emt 0:01:05]} b5 {[%emt 0:00:18]} 14. cxb5 {[%emt 0:02:58]} Bxb5 {[%emt 0:00:05]} 15. Nf5 {[%emt 0:00:21]} Qe6 {[%emt 0:01:29]} 16. a4 {[%emt 0:01:13]} Bd7 {[%emt 0:00:22]} 17. g4 {[%emt 0:04:37]} Kh8 {[%emt 0:02:47]} 18. b4 {[%emt 0:06:14]} Ng8 {[%emt 0:00:07]} 19. Qc2 {[%emt 0:00:57]} g6 {[%emt 0:01:06]} 20. Ng3 {[%emt 0:00:19]} f6 {[%emt 0:00:51]} 21. d4 {[%emt 0:05:24]} Qe8 {[%emt 0:06:42]} 22. a5 {[%emt 0:10:15]} Bb5 {[%emt 0:04:56]} 23. Rfd1 {[%emt 0:00:35]} ({But not} 23. Qxc7 $6 Bxf1 24. Rxf1 (24. Nxf1 Qc6 $11) (24. Bxf1 exd4 25. Bxd4 Ne6 $11) 24... exd4 $11) 23... exd4 {[%emt 0:01:33]} 24. Bxd4 {[%emt 0:00:01]} ({Don't play} 24. Rxd4 $6 Nc6 $14) 24... Ne6 {[%emt 0:00:28]} 25. Be3 {[%emt 0:00:49]} Ne7 {[%emt 0:00:01]} 26. f4 {[%emt 0:00:48]} Nc6 {[%emt 0:00:11]} 27. Qc3 {[%emt 0:00:24]} Kg8 {[%emt 0:01:47]} 28. Rd5 {[%emt 0:02:09]} Ncd8 {[%emt 0:05:14]} 29. f5 {[%emt 0:00:57]} Ng5 {[%emt 0:01:12]} 30. Bxg5 $18 {[%emt 0:03:33]} fxg5 {[%emt 0:00:41]} 31. e5 {[%emt 0:00:05]} Nf7 {[%emt 0:20:18]} 32. Re1 {[%emt 0:02:32]} Qc6 {[%emt 0:30:54]} 33. Rc5 {[%emt 0:00:39]} Qa6 {[%emt 0:00:02]} 34. Rxc7 {[%emt 0:01:30]} dxe5 {[%emt 0:03:04]} 35. Bxb7 {[%emt 0:00:29]} Qa7+ 36. Qc5 {[%emt 0:00:17]} Qxc5+ {[%emt 0:00:30]} 37. Rxc5 {[%emt 0:00:14]} Rad8 {[%emt 0:00:18]} 38. Rxb5 {[%emt 0:00:07]} Rd3 {[%emt 0:00:01]} 39. Kg2 {[%emt 0:00:10]} Nd6 {[%emt 0:00:04]} 40. Rd5 {[%emt 0:00:10]} Rxg3+ {[%emt 0:00:09]} 41. Kxg3 {[%emt 0:00:01]} Nxb7 {[%emt 0:00:01]} 42. a6 {[%emt 0:00:22]} Nd8 {[%emt 0:00:08]} 43. b5 {[%emt 0:00:05]} 1-0